[Event "Fast Chess"]
[Site "ChessKid.com"]
[Date "2020.04.21"]
[Round "3"]
[White "Horvath, Alexander"]
[Black "Sasse, Gabriel"]
[Result "1-0"]
[ECO "C50"]
[WhiteElo "1333"]
[BlackElo "1239"]
[Annotator "Fesselung, Königsangriff"]
[PlyCount "209"]
[EventDate "2020.??.??"]
[TimeControl "300+50"]
[WhiteClock "0:08:27"]
[BlackClock "0:05:17"]

1. e4 {[%emt 0:00:45]} e5 {[%emt 0:00:46]} 2. Nf3 {[%emt 0:00:48]} Nc6 {
[%emt 0:00:46]} 3. Nc3 {[%emt 0:00:48]} Bc5 {[%emt 0:00:46]} 4. Bc4 {[%emt 0:
00:47]} h6 {[%emt 0:00:46]} 5. d3 {[%emt 0:00:49]} Nf6 {[%emt 0:00:46]} 6. O-O
{[%emt 0:00:48]} O-O {[%emt 0:00:46]} 7. Nd5 {[%emt 0:00:53]} d6 {[%emt 0:00:
46]} 8. Nxf6+ {[%emt 0:00:49]} Qxf6 {[%emt 0:00:47]} 9. b3 {[%emt 0:00:52]} Qg6
{[%emt 0:00:47]} 10. Bd5 {[%emt 0:00:58]} Bh3 {[%emt 0:00:52]} 11. Ne1 {
[%emt 0:00:52]} Bb4 {[%emt 0:00:49]} 12. Bd2 {[%emt 0:00:56]} Bxd2 {[%emt 0:00:
47]} 13. Qxd2 {[%emt 0:00:47]} Nd4 {[%emt 0:00:47]} 14. c3 {[%emt 0:01:00]}
Nf3+ {[%emt 0:00:47]} 15. Kh1 {[%emt 0:01:43]} Nxd2 {[%emt 0:00:47]} 16. Rg1 {
[%emt 0:00:49]} Bg4 {[%emt 0:00:53]} 17. f3 {[%emt 0:00:51]} Bc8 {[%emt 0:00:
55]} 18. d4 {[%emt 0:00:52]} exd4 {[%emt 0:00:48]} 19. cxd4 {[%emt 0:00:45]}
Qf6 {[%emt 0:00:48]} 20. g3 {[%emt 0:00:57]} Qd8 {[%emt 0:00:47]} 21. Rg2 {
[%emt 0:00:49]} Qf6 {[%emt 0:00:51]} 22. Rxd2 {[%emt 0:00:50]} Qg5 {[%emt 0:00:
53]} 23. f4 {[%emt 0:00:50]} Qd8 {[%emt 0:00:47]} 24. e5 {[%emt 0:00:52]} dxe5
{[%emt 0:00:47]} 25. dxe5 {[%emt 0:00:45]} c6 {[%emt 0:00:46]} 26. Bxf7+ {
[%emt 0:00:48]} Kxf7 {[%emt 0:00:49]} 27. Rxd8 {[%emt 0:00:47]} Rxd8 {[%emt 0:
00:46]} 28. Ng2 {[%emt 0:00:49]} Bf5 {[%emt 0:00:49]} 29. Nh4 {[%emt 0:00:48]}
Bg6 {[%emt 0:00:48]} 30. f5 {[%emt 0:00:49]} Bh7 {[%emt 0:00:48]} 31. e6+ {
[%emt 0:00:49]} Kf6 {[%emt 0:00:46]} 32. g4 {[%emt 0:00:50]} Re8 {[%emt 0:00:
50]} 33. Rg1 {[%emt 0:00:50]} g5 {[%emt 0:00:47]} 34. Nf3 {[%emt 0:00:50]} Red8
{[%emt 0:00:58]} 35. a4 {[%emt 0:00:50]} Rd6 {[%emt 0:00:48]} 36. Re1 {[%emt 0:
00:53]} Re8 {[%emt 0:00:53]} 37. h4 {[%emt 0:00:53]} gxh4 {[%emt 0:00:47]} 38.
Nxh4 {[%emt 0:00:45]} Bg8 {[%emt 0:00:48]} 39. Kg2 {[%emt 0:00:47]} Bxe6 {
[%emt 0:00:47]} 40. fxe6 {[%emt 0:00:49]} Rexe6 {[%emt 0:00:47]} 41. Rf1+ {
[%emt 0:00:48]} Kg5 {[%emt 0:01:02]} 42. Kh3 {[%emt 0:00:51]} Re3+ {[%emt 0:00:
48]} 43. Nf3+ {[%emt 0:00:54]} Kf6 {[%emt 0:00:54]} 44. Kh2 {[%emt 0:00:50]}
Rd4 {[%emt 0:00:53]} 45. Nxd4+ {[%emt 0:00:49]} Ke5 {[%emt 0:00:47]} 46. Nc2 {
[%emt 0:00:48]} Re2+ {[%emt 0:00:47]} 47. Kg1 {[%emt 0:00:49]} Rxc2 {[%emt 0:
00:47]} 48. Re1+ {[%emt 0:00:47]} Kd4 {[%emt 0:00:49]} 49. Re7 {[%emt 0:00:53]}
Kc3 {[%emt 0:00:49]} 50. Rxb7 {[%emt 0:00:50]} a5 {[%emt 0:00:46]} 51. Rb6 {
[%emt 0:01:07]} Kd3 {[%emt 0:00:50]} 52. Rb8 {[%emt 0:00:55]} Ke3 {[%emt 0:00:
47]} 53. Rf8 {[%emt 0:00:48]} Kd3 {[%emt 0:00:49]} 54. Re8 {[%emt 0:00:48]} Kc3
{[%emt 0:00:50]} 55. Re3+ {[%emt 0:00:49]} Kb4 {[%emt 0:00:48]} 56. Rh3 {
[%emt 0:01:02]} Rc3 {[%emt 0:00:50]} 57. Rxh6 {[%emt 0:00:49]} Rg3+ {[%emt 0:
00:47]} 58. Kf2 {[%emt 0:00:49]} Rxg4 {[%emt 0:00:46]} 59. Rxc6 {[%emt 0:00:57]
} Kxb3 {[%emt 0:00:47]} 60. Kf3 {[%emt 0:00:53]} Rxa4 {[%emt 0:00:48]} 61. Re6
{[%emt 0:00:50]} Kb2 {[%emt 0:00:47]} 62. Re2+ {[%emt 0:00:49]} Kb3 {[%emt 0:
00:47]} 63. Re3+ {[%emt 0:00:46]} Kc2 {[%emt 0:00:47]} 64. Re2+ {[%emt 0:00:47]
} Kc3 {[%emt 0:00:47]} 65. Re3+ {[%emt 0:00:48]} Kd4 {[%emt 0:00:47]} 66. Re4+
{[%emt 0:00:47]} Kc5 {[%emt 0:00:48]} 67. Rxa4 {[%emt 0:00:47]} Kb5 {[%emt 0:
00:46]} 68. Ra1 {[%emt 0:00:49]} Kb4 {[%emt 0:00:47]} 69. Ke2 {[%emt 0:00:50]}
a4 {[%emt 0:00:46]} 70. Kd2 {[%emt 0:00:47]} Kb3 {[%emt 0:00:46]} 71. Kc1 {
[%emt 0:00:47]} a3 {[%emt 0:00:46]} 72. Kb1 {[%emt 0:00:48]} Ka4 {[%emt 0:00:
51]} 73. Ka2 {[%emt 0:01:01]} Kb4 {[%emt 0:00:47]} 74. Rb1+ {[%emt 0:00:50]}
Ka4 {[%emt 0:00:46]} 75. Rb3 {[%emt 0:00:48]} Ka5 {[%emt 0:00:51]} 76. Rxa3+ {
[%emt 0:00:46]} Kb4 {[%emt 0:00:46]} 77. Rh3 {[%emt 0:00:52]} Kc4 {[%emt 0:00:
47]} 78. Kb2 {[%emt 0:00:47]} Kd4 {[%emt 0:00:47]} 79. Kc2 {[%emt 0:00:47]} Ke4
{[%emt 0:00:46]} 80. Kd2 {[%emt 0:00:47]} Kf4 {[%emt 0:00:46]} 81. Ke2 {
[%emt 0:00:47]} Kg4 {[%emt 0:00:46]} 82. Rb3 {[%emt 0:00:47]} Kh4 {[%emt 0:00:
47]} 83. Kf2 {[%emt 0:00:48]} Kg4 {[%emt 0:00:49]} 84. Ra3 {[%emt 0:00:49]} Kh4
{[%emt 0:00:51]} 85. Kg2 {[%emt 0:00:47]} Kg4 {[%emt 0:00:47]} 86. Ra4+ {
[%emt 0:00:48]} Kf5 {[%emt 0:00:46]} 87. Kf3 {[%emt 0:00:47]} Ke5 {[%emt 0:00:
57]} 88. Ke3 {[%emt 0:00:47]} Kd5 {[%emt 0:00:47]} 89. Kd3 {[%emt 0:00:46]} Ke5
{[%emt 0:00:46]} 90. Rb4 {[%emt 0:00:49]} Kd5 {[%emt 0:00:47]} 91. Rb5+ {
[%emt 0:00:46]} Kc6 {[%emt 0:00:47]} 92. Rh5 {[%emt 0:00:46]} Kd6 {[%emt 0:00:
47]} 93. Ke4 {[%emt 0:00:48]} Ke7 {[%emt 0:00:47]} 94. Rh6 {[%emt 0:00:47]} Kf7
{[%emt 0:00:46]} 95. Kf5 {[%emt 0:00:47]} Kg7 {[%emt 0:00:47]} 96. Ra6 {
[%emt 0:00:47]} Kh7 {[%emt 0:00:49]} 97. Kg5 {[%emt 0:00:47]} Kg7 {[%emt 0:00:
47]} 98. Ra7+ {[%emt 0:00:47]} Kf8 {[%emt 0:00:51]} 99. Kf6 {[%emt 0:00:47]}
Ke8 {[%emt 0:00:46]} 100. Rh7 {[%emt 0:00:50]} Kd8 {[%emt 0:00:47]} 101. Ke6 {
[%emt 0:00:47]} Kc8 {[%emt 0:00:46]} 102. Kd6 {[%emt 0:00:46]} Kb8 {[%emt 0:00:
47]} 103. Kc6 {[%emt 0:00:46]} Ka8 {[%emt 0:00:46]} 104. Kb6 {[%emt 0:00:47]}
Kb8 {[%emt 0:00:46]} 105. Rh8# {[%emt 0:00:45] KeenOrangeTeeth won by checkmate
} 1-0

[Event "Fast Chess"]
[Site "ChessKid.com"]
[Date "2020.04.22"]
[Round "1"]
[White "Georgiev, Maximilian"]
[Black "Sasse, Gabriel"]
[Result "1-0"]
[ECO "C50"]
[WhiteElo "1429"]
[BlackElo "1241"]
[Annotator "Abzug"]
[PlyCount "69"]
[EventDate "2020.??.??"]
[TimeControl "180"]
[WhiteClock "0:00:58"]
[BlackClock "0:01:52"]

1. e4 {[%emt 0:00:00]} e5 {[%emt 0:00:00]} 2. Nf3 {[%emt 0:00:01]} Nc6 {
[%emt 0:00:03]} 3. Bc4 {[%emt 0:00:00]} Bc5 {[%emt 0:00:01]} 4. O-O {[%emt 0:
00:00]} h6 {[%emt 0:00:01]} 5. Nc3 {[%emt 0:00:01]} Nf6 {[%emt 0:00:01]} 6. d3
{[%emt 0:00:00]} O-O {[%emt 0:00:00]} 7. a3 {[%emt 0:00:01]} d6 {[%emt 0:00:00]
} 8. b4 {[%emt 0:00:01]} Bb6 {[%emt 0:00:07]} 9. h3 {[%emt 0:00:01]} a6 {
[%emt 0:00:01]} 10. Be3 {[%emt 0:00:01]} Bxe3 {[%emt 0:00:02]} 11. fxe3 {
[%emt 0:00:01]} b5 {[%emt 0:00:01]} 12. Bb3 {[%emt 0:00:03]} a5 {[%emt 0:00:02]
} 13. Nd5 {[%emt 0:00:01]} axb4 {[%emt 0:00:04]} 14. Nxf6+ {[%emt 0:00:01]}
Qxf6 {[%emt 0:00:05]} 15. axb4 {[%emt 0:00:01]} Nxb4 $4 {[%emt 0:00:03]} 16.
Rxa8 {[%emt 0:00:03]} Bb7 {[%emt 0:00:06]} 17. Ra1 $2 {[%emt 0:00:03]} Qd8 {
[%emt 0:00:05]} 18. c3 {[%emt 0:00:01]} Nc6 {[%emt 0:00:03]} 19. Bd5 {[%emt 0:
00:01]} Qb8 {[%emt 0:00:03]} 20. c4 {[%emt 0:00:02]} bxc4 {[%emt 0:00:02]} 21.
dxc4 {[%emt 0:00:01]} Nb4 {[%emt 0:00:08]} 22. Bxb7 {[%emt 0:00:03]} Qxb7 {
[%emt 0:00:01]} 23. Rb1 {[%emt 0:00:01]} c5 {[%emt 0:00:08]} 24. Qd2 {[%emt 0:
00:04]} Qc7 {[%emt 0:00:03]} 25. Qf2 {[%emt 0:00:04]} Kh8 {[%emt 0:00:05]} 26.
Qg3 {[%emt 0:00:02]} Kg8 {[%emt 0:00:01]} 27. Nh4 {[%emt 0:00:02]} Kh8 {
[%emt 0:00:02]} 28. Nf5 {[%emt 0:00:01]} g6 {[%emt 0:00:03]} 29. Nxh6 {[%emt 0:
00:01]} Kh7 {[%emt 0:00:03]} 30. Qg5 {[%emt 0:00:03]} Nc2 {[%emt 0:00:06]} 31.
Qh4 {[%emt 0:00:08]} Nxe3 {[%emt 0:00:03]} 32. Rf3 {[%emt 0:00:07]} Nxc4 {
[%emt 0:00:07]} 33. Nxf7+ {[%emt 0:00:02]} Kg7 {[%emt 0:00:06]} 34. Ng5 {
[%emt 0:00:03]} Qe7 {[%emt 0:00:17]} 35. Qh7# {[%emt 0:00:03] TallSnazzyBall
won by checkmate} 1-0

[Event "Fast Chess"]
[Site "ChessKid.com"]
[Date "2020.04.22"]
[Round "1"]
[White "Li, Patrick"]
[Black "Li, Tobias"]
[Result "0-1"]
[ECO "C57"]
[WhiteElo "1106"]
[BlackElo "1339"]
[Annotator "S+L gegen T+B Einschlag f7"]
[PlyCount "58"]
[EventDate "2020.??.??"]
[TimeControl "180"]
[WhiteClock "0:00:53"]
[BlackClock "0:00:02"]

1. e4 {[%emt 0:00:13]} e5 {[%emt 0:00:01]} 2. Nf3 {[%emt 0:00:02]} Nc6 {
[%emt 0:00:01]} 3. Nc3 {[%emt 0:00:02]} Nf6 {[%emt 0:00:01]} 4. Bc4 {[%emt 0:
00:01]} Bc5 {[%emt 0:00:01]} 5. Ng5 {[%emt 0:00:02]} O-O {[%emt 0:00:00]} 6.
Nxf7 {[%emt 0:00:01]} Rxf7 {[%emt 0:00:01]} 7. Bxf7+ {[%emt 0:00:01]} Kxf7 {
[%emt 0:00:00]} 8. O-O {[%emt 0:00:02]} Kg8 {[%emt 0:00:01]} 9. Qf3 {[%emt 0:
00:30]} d6 {[%emt 0:00:06]} 10. Qg3 {[%emt 0:00:03]} Qd7 {[%emt 0:00:17]} 11.
d3 {[%emt 0:00:02]} Qe6 {[%emt 0:00:01]} 12. Bh6 {[%emt 0:00:03]} Nh5 {[%emt 0:
00:01]} 13. Qh4 {[%emt 0:00:22]} Qxh6 {[%emt 0:00:04]} 14. h3 {[%emt 0:00:18]}
Ng3 {[%emt 0:00:06]} 15. Qxg3 {[%emt 0:00:02]} Bd4 {[%emt 0:00:05]} 16. Qf3 {
[%emt 0:00:11]} Be6 {[%emt 0:00:29]} 17. Nd5 {[%emt 0:00:06]} Bxd5 {[%emt 0:00:
02]} 18. exd5 {[%emt 0:00:07]} Bxb2 {[%emt 0:00:04]} 19. Rab1 {[%emt 0:00:04]}
Nd4 {[%emt 0:00:01]} 20. Qe4 {[%emt 0:00:04]} Ba3 {[%emt 0:00:06]} 21. Rxb7 {
[%emt 0:00:03]} Bc5 {[%emt 0:00:01]} 22. Qg4 {[%emt 0:00:05]} Qg6 {[%emt 0:00:
04]} 23. Qd7 {[%emt 0:00:11]} Ne2+ {[%emt 0:00:07]} 24. Kh2 {[%emt 0:00:05]}
Qe8 {[%emt 0:00:08]} 25. Qxc7 {[%emt 0:00:02]} Qf8 {[%emt 0:00:04]} 26. Qd7 {
[%emt 0:00:07]} Nd4 {[%emt 0:00:04]} 27. Qe6+ $4 {[%emt 0:00:04]} (27. f4)
27... Nxe6 {[%emt 0:00:08]} 28. Rxg7+ {[%emt 0:00:03]} Qxg7 {[%emt 0:00:02]}
29. Rb1 {[%emt 0:00:01]} Qxg2+ {[%emt 0:00:03] OnlyHungryKiwi won on time} 0-1

[Event "Fast Chess"]
[Site "ChessKid.com"]
[Date "2020.04.22"]
[Round "2"]
[White "Li, Tobias"]
[Black "Georgiev, Maximilian"]
[Result "0-1"]
[ECO "C50"]
[WhiteElo "1333"]
[BlackElo "1435"]
[Annotator "einzügiger Einsteller"]
[PlyCount "62"]
[EventDate "2020.??.??"]
[TimeControl "180"]
[WhiteClock "0:01:26"]
[BlackClock "0:01:09"]

1. e4 {[%emt 0:00:00]} e5 {[%emt 0:00:00]} 2. Nf3 {[%emt 0:00:00]} Nc6 {
[%emt 0:00:02]} 3. Bc4 {[%emt 0:00:07]} h6 {[%emt 0:00:01]} 4. c3 {[%emt 0:00:
02]} Nf6 {[%emt 0:00:01]} 5. d4 {[%emt 0:00:03]} Be7 {[%emt 0:00:00]} 6. dxe5 {
[%emt 0:00:02]} O-O {[%emt 0:00:00]} 7. exf6 {[%emt 0:00:01]} Bxf6 {[%emt 0:00:
02]} 8. O-O {[%emt 0:00:02]} d6 {[%emt 0:00:02]} 9. Nbd2 {[%emt 0:00:03]} Bg4 {
[%emt 0:00:02]} 10. h3 {[%emt 0:00:09]} Bh5 {[%emt 0:00:02]} 11. Qc2 {[%emt 0:
00:03]} a6 {[%emt 0:00:07]} 12. Re1 {[%emt 0:00:05]} b5 {[%emt 0:00:02]} 13.
Bb3 {[%emt 0:00:03]} Na5 {[%emt 0:00:06]} 14. a3 {[%emt 0:00:05]} Nxb3 {
[%emt 0:00:02]} 15. Qxb3 {[%emt 0:00:03]} c6 {[%emt 0:00:03]} 16. c4 {[%emt 0:
00:04]} bxc4 {[%emt 0:00:02]} 17. Qxc4 {[%emt 0:00:02]} d5 {[%emt 0:00:04]} 18.
exd5 {[%emt 0:00:02]} cxd5 {[%emt 0:00:01]} 19. Qc2 {[%emt 0:00:06]} d4 {
[%emt 0:00:04]} 20. Qc4 {[%emt 0:00:05]} Rc8 {[%emt 0:00:08]} 21. Rd1 $4 {
[%emt 0:00:00]} Rxc4 {[%emt 0:00:10]} 22. Nxc4 {[%emt 0:00:00]} d3 {[%emt 0:00:
04]} 23. Nce5 {[%emt 0:00:08]} Bxe5 {[%emt 0:00:02]} 24. Nxe5 {[%emt 0:00:01]}
Bxd1 {[%emt 0:00:02]} 25. Be3 {[%emt 0:00:04]} Ba4 {[%emt 0:00:06]} 26. Bc5 {
[%emt 0:00:09]} Re8 {[%emt 0:00:03]} 27. Nf3 {[%emt 0:00:11]} d2 {[%emt 0:00:
03]} 28. Nxd2 {[%emt 0:00:03]} Qxd2 {[%emt 0:00:02]} 29. Be3 {[%emt 0:00:00]}
Qxb2 {[%emt 0:00:02]} 30. Re1 {[%emt 0:00:04]} Qxa3 {[%emt 0:00:05]} 31. Bd4 {
[%emt 0:00:03]} Rxe1+ {[%emt 0:00:04] TallSnazzyBall won by resignation} 0-1

[Event "Fast Chess"]
[Site "ChessKid.com"]
[Date "2020.04.22"]
[Round "2"]
[White "Sasse, Gabriel"]
[Black "Dai, Lana"]
[Result "1-0"]
[ECO "C50"]
[WhiteElo "1250"]
[BlackElo "1258"]
[Annotator "einzügiger Einsteller"]
[PlyCount "77"]
[EventDate "2020.??.??"]
[TimeControl "180"]
[WhiteClock "0:00:03"]
[BlackClock "0:01:08"]

1. e4 {[%emt 0:00:00]} e5 {[%emt 0:00:01]} 2. Nf3 {[%emt 0:00:01]} Nc6 {
[%emt 0:00:01]} 3. Bc4 {[%emt 0:00:00]} h6 {[%emt 0:00:02]} 4. h3 {[%emt 0:00:
02]} Nf6 {[%emt 0:00:02]} 5. O-O {[%emt 0:00:00]} a6 {[%emt 0:00:01]} 6. Nc3 {
[%emt 0:00:01]} Bc5 {[%emt 0:00:01]} 7. d3 {[%emt 0:00:01]} O-O {[%emt 0:00:02]
} 8. Ne1 {[%emt 0:00:02]} b5 {[%emt 0:00:03]} 9. Bb3 {[%emt 0:00:02]} b4 {
[%emt 0:00:06]} 10. Nb1 {[%emt 0:00:02]} Nd4 {[%emt 0:00:05]} 11. Qf3 $4 {
[%emt 0:00:06]} Nxf3+ {[%emt 0:00:02]} 12. Nxf3 {[%emt 0:00:01]} d6 {[%emt 0:
00:02]} 13. c3 {[%emt 0:00:05]} bxc3 {[%emt 0:00:06]} 14. Nxc3 {[%emt 0:00:01]}
Bd4 {[%emt 0:00:03]} 15. Nd5 {[%emt 0:00:03]} Nxd5 {[%emt 0:00:04]} 16. exd5 {
[%emt 0:00:01]} Qf6 {[%emt 0:00:13]} 17. Nxd4 {[%emt 0:00:04]} exd4 {[%emt 0:
00:03]} 18. Bd2 {[%emt 0:00:07]} Qh4 {[%emt 0:00:04]} 19. Bd1 {[%emt 0:00:06]}
Qf6 {[%emt 0:00:08]} 20. Rc1 {[%emt 0:00:02]} Qg6 {[%emt 0:00:09]} 21. Bg4 {
[%emt 0:00:05]} Bxg4 {[%emt 0:00:09]} 22. hxg4 {[%emt 0:00:02]} Rac8 {[%emt 0:
00:04]} 23. f3 {[%emt 0:00:04]} Qxd3 {[%emt 0:00:07]} 24. Be1 {[%emt 0:00:05]}
Qe3+ {[%emt 0:00:02]} 25. Bf2 {[%emt 0:00:04]} Qd2 {[%emt 0:00:12]} 26. Rcd1 {
[%emt 0:00:04]} Qxb2 {[%emt 0:00:05]} 27. Bxd4 {[%emt 0:00:02]} Qxa2 {[%emt 0:
00:12]} 28. Ra1 {[%emt 0:00:02]} Qxd5 {[%emt 0:00:07]} 29. Rfd1 {[%emt 0:00:03]
} a5 {[%emt 0:00:09]} 30. Bxg7 {[%emt 0:00:02]} Qc5+ {[%emt 0:00:05]} 31. Bd4 {
[%emt 0:00:06]} Qc6 {[%emt 0:00:05]} 32. Rxa5 {[%emt 0:00:04]} Qc2 {[%emt 0:00:
05]} 33. Raa1 {[%emt 0:00:04]} Qe2 {[%emt 0:00:04]} 34. Re1 {[%emt 0:00:03]}
Qd3 {[%emt 0:00:02]} 35. Red1 {[%emt 0:00:02]} Qe2 {[%emt 0:00:02]} 36. Re1 {
[%emt 0:00:03]} Qd3 {[%emt 0:00:02]} 37. Rad1 {[%emt 0:00:04]} Qg6 {[%emt 0:00:
05]} 38. Bb2 {[%emt 0:00:05]} Qh7 {[%emt 0:00:04]} 39. Ba3 {[%emt 0:00:02]
LimeFarActor won on time} 1-0

[Event "Fast Chess"]
[Site "ChessKid.com"]
[Date "2020.04.22"]
[Round "3"]
[White "Dai, Lana"]
[Black "Georgiev, Maximilian"]
[Result "1-0"]
[ECO "C55"]
[WhiteElo "1270"]
[BlackElo "1424"]
[Annotator "Abzug"]
[PlyCount "61"]
[EventDate "2020.??.??"]
[TimeControl "180"]
[WhiteClock "0:01:38"]
[BlackClock "0:00:47"]

1. e4 {[%emt 0:00:00]} e5 {[%emt 0:00:01]} 2. Nf3 {[%emt 0:00:01]} Nc6 {
[%emt 0:00:00]} 3. Nc3 {[%emt 0:00:01]} Nf6 {[%emt 0:00:01]} 4. Bc4 {[%emt 0:
00:02]} h6 {[%emt 0:00:02]} 5. a3 {[%emt 0:00:02]} Be7 {[%emt 0:00:01]} 6. h3 {
[%emt 0:00:01]} a6 {[%emt 0:00:01]} 7. O-O {[%emt 0:00:05]} O-O {[%emt 0:00:01]
} 8. Nd5 {[%emt 0:00:04]} Nxd5 {[%emt 0:00:03]} 9. exd5 {[%emt 0:00:02]} Na7 {
[%emt 0:00:04]} 10. Nxe5 {[%emt 0:00:05]} b5 {[%emt 0:00:02]} 11. Bd3 {[%emt 0:
00:08]} c6 {[%emt 0:00:03]} 12. dxc6 {[%emt 0:00:02]} dxc6 {[%emt 0:00:01]} 13.
Be4 {[%emt 0:00:08]} Qc7 {[%emt 0:00:05]} 14. d4 {[%emt 0:00:09]} Rb8 {[%emt 0:
00:08]} 15. Bf4 $1 {[%emt 0:00:03]} c5 $4 {[%emt 0:00:04]} 16. dxc5 {[%emt 0:
00:05]} Qxc5 {[%emt 0:00:04]} 17. Nd3 {[%emt 0:00:09]} Qb6 {[%emt 0:00:08]} 18.
Bxb8 {[%emt 0:00:02]} Qxb8 {[%emt 0:00:02]} 19. b4 {[%emt 0:00:07]} Qe5 {
[%emt 0:00:04]} 20. Nxe5 {[%emt 0:00:02]} Bf6 {[%emt 0:00:02]} 21. Ng4 {
[%emt 0:00:03]} Bxa1 {[%emt 0:00:02]} 22. Qf3 {[%emt 0:00:11]} Bxg4 {[%emt 0:
00:03]} 23. Qxg4 {[%emt 0:00:02]} f5 {[%emt 0:00:03]} 24. Bd5+ {[%emt 0:00:07]}
Kh8 {[%emt 0:00:03]} 25. Qg6 {[%emt 0:00:05]} Rf6 {[%emt 0:00:06]} 26. Qe8+ {
[%emt 0:00:03]} Kh7 {[%emt 0:00:01]} 27. Qg8+ {[%emt 0:00:08]} Kg6 {[%emt 0:00:
02]} 28. Qe8+ {[%emt 0:00:03]} Kh7 {[%emt 0:00:03]} 29. Bg8+ {[%emt 0:00:05]}
Kh8 {[%emt 0:00:01]} 30. Bf7+ {[%emt 0:00:06]} Kh7 {[%emt 0:00:01]} 31. Qg8# {
[%emt 0:00:03] TopBrownCave won by checkmate} 1-0

[Event "Fast Chess"]
[Site "ChessKid.com"]
[Date "2020.04.22"]
[Round "3"]
[White "Sasse, Gabriel"]
[Black "Li, Tobias"]
[Result "0-1"]
[ECO "C55"]
[WhiteElo "1244"]
[BlackElo "1339"]
[Annotator "einzügiger Einsteller"]
[PlyCount "132"]
[EventDate "2020.??.??"]
[TimeControl "180"]
[WhiteClock "0:00:07"]

1. e4 {[%emt 0:00:00]} e5 {[%emt 0:00:00]} 2. Nf3 {[%emt 0:00:01]} Nc6 {
[%emt 0:00:01]} 3. Bc4 {[%emt 0:00:02]} Bc5 {[%emt 0:00:03]} 4. Nc3 {[%emt 0:
00:02]} Nf6 {[%emt 0:00:01]} 5. h3 {[%emt 0:00:02]} O-O {[%emt 0:00:01]} 6. O-O
{[%emt 0:00:01]} Re8 {[%emt 0:00:04]} 7. a3 {[%emt 0:00:01]} h6 {[%emt 0:00:02]
} 8. b4 {[%emt 0:00:01]} Bd4 {[%emt 0:00:03]} 9. Nxd4 {[%emt 0:00:03]} exd4 {
[%emt 0:00:01]} 10. Nb5 {[%emt 0:00:01]} a6 {[%emt 0:00:09]} 11. Nxd4 $4 {
[%emt 0:00:02]} Nxd4 {[%emt 0:00:03]} 12. c3 {[%emt 0:00:02]} Nc6 {[%emt 0:00:
03]} 13. Re1 {[%emt 0:00:03]} Rxe4 {[%emt 0:00:07]} 14. Rxe4 {[%emt 0:00:02]}
Nxe4 {[%emt 0:00:02]} 15. Bd3 {[%emt 0:00:03]} Nf6 {[%emt 0:00:01]} 16. Qf3 {
[%emt 0:00:04]} d6 {[%emt 0:00:03]} 17. Qg3 {[%emt 0:00:02]} Qe7 {[%emt 0:00:
02]} 18. Bb2 {[%emt 0:00:10]} Bd7 {[%emt 0:00:13]} 19. c4 {[%emt 0:00:01]} Ne5
{[%emt 0:00:04]} 20. f4 {[%emt 0:00:07]} Nxd3 {[%emt 0:00:02]} 21. Qxd3 {
[%emt 0:00:03]} Qe4 {[%emt 0:00:06]} 22. Qxe4 {[%emt 0:00:02]} Nxe4 {[%emt 0:
00:02]} 23. Re1 {[%emt 0:00:02]} Nxd2 {[%emt 0:00:01]} 24. Bc3 {[%emt 0:00:02]}
Nxc4 {[%emt 0:00:01]} 25. a4 {[%emt 0:00:01]} Bxa4 {[%emt 0:00:05]} 26. Re7 {
[%emt 0:00:02]} c5 {[%emt 0:00:03]} 27. bxc5 {[%emt 0:00:01]} dxc5 {[%emt 0:00:
01]} 28. Rxb7 {[%emt 0:00:02]} Nd6 {[%emt 0:00:03]} 29. Rc7 {[%emt 0:00:02]} c4
{[%emt 0:00:05]} 30. Rc5 {[%emt 0:00:05]} Bb3 {[%emt 0:00:04]} 31. Rd5 {
[%emt 0:00:08]} Nb5 {[%emt 0:00:07]} 32. Ba1 {[%emt 0:00:12]} Nc7 {[%emt 0:00:
07]} 33. Rc5 {[%emt 0:00:03]} Ne6 {[%emt 0:00:01]} 34. Re5 {[%emt 0:00:06]} a5
{[%emt 0:00:02]} 35. f5 {[%emt 0:00:03]} Nf4 {[%emt 0:00:03]} 36. Re4 {[%emt 0:
00:11]} Nh5 {[%emt 0:00:08]} 37. Rd4 {[%emt 0:00:08]} Nf6 {[%emt 0:00:01]} 38.
Rf4 {[%emt 0:00:02]} a4 {[%emt 0:00:01]} 39. Rf3 {[%emt 0:00:02]} a3 {[%emt 0:
00:01]} 40. Rf4 {[%emt 0:00:01]} a2 {[%emt 0:00:01]} 41. Rf3 {[%emt 0:00:01]}
Rd8 {[%emt 0:00:05]} 42. Rf1 {[%emt 0:00:03]} Ne4 {[%emt 0:00:04]} 43. Re1 {
[%emt 0:00:08]} Ng3 {[%emt 0:00:04]} 44. Rc1 {[%emt 0:00:07]} Ne2+ {[%emt 0:00:
03]} 45. Kf1 {[%emt 0:00:03]} Nxc1 {[%emt 0:00:01]} 46. Ke1 {[%emt 0:00:01]}
Nd3+ {[%emt 0:00:02]} 47. Kf1 {[%emt 0:00:01]} Nf4 {[%emt 0:00:03]} 48. g3 {
[%emt 0:00:02]} Nxh3 {[%emt 0:00:02]} 49. Kg2 {[%emt 0:00:00]} Rd1 {[%emt 0:00:
03]} 50. Kh2 {[%emt 0:00:01]} Rxa1 {[%emt 0:00:03]} 51. Kxh3 {[%emt 0:00:01]}
Rh1+ {[%emt 0:00:01]} 52. Kg2 {[%emt 0:00:01]} a1=Q {[%emt 0:00:03]} 53. Kf3 {
[%emt 0:00:02]} Qe5 {[%emt 0:00:01]} 54. Kg2 {[%emt 0:00:01]} Qxf5 {[%emt 0:00:
02]} 55. g4 {[%emt 0:00:03]} c3 {[%emt 0:00:00]} 56. gxf5 {[%emt 0:00:02]} c2 {
[%emt 0:00:02]} 57. Kxh1 {[%emt 0:00:01]} c1=Q+ {[%emt 0:00:00]} 58. Kg2 {
[%emt 0:00:01]} Qc2+ {[%emt 0:00:02]} 59. Kg3 {[%emt 0:00:03]} Qxf5 {[%emt 0:
00:01]} 60. Kg2 {[%emt 0:00:02]} Qf4 {[%emt 0:00:01]} 61. Kg1 {[%emt 0:00:01]}
Qf3 {[%emt 0:00:01]} 62. Kh2 {[%emt 0:00:01]} Qe2+ {[%emt 0:00:01]} 63. Kg1 {
[%emt 0:00:02]} f5 {[%emt 0:00:03]} 64. Kh1 {[%emt 0:00:03]} Kf7 {[%emt 0:00:
00]} 65. Kg1 {[%emt 0:00:01]} Ke6 {[%emt 0:00:00]} 66. Kh1 {[%emt 0:00:01]} Ke5
{[%emt 0:00:00] OnlyHungryKiwi won on time} 0-1